[Event "FIDE CB Open 2022"]
[Site "Ceske Budejovice"]
[Date "2022.07.03"]
[Round "3.34"]
[White "Kotleska, Roman"]
[Black "Mrazik, Tomas"]
[Result "1/2-1/2"]
[ECO "B36"]
[WhiteElo "1863"]
[BlackElo "2055"]
[Annotator "RC"]
[PlyCount "104"]
[EventDate "2022.07.01"]
[EventType "swiss"]
[EventCountry "CZE"]
[SourceTitle "playchess.com"]
[Source "ChessBase"]
[SourceQuality "1"]
[TimeControl "40/5400+30:1800+30"]

1. e4 {[%emt 0:00:07]} c5 {[%emt 0:00:05]} 2. Nf3 {[%emt 0:00:14]} g6 {[%emt 0:00:06]} 3. c4 {[%emt 0:00:59]} Nc6 {[%emt 0:00:12]} 4. d4 {[%emt 0:00:30]} cxd4 {[%emt 0:00:06]} 5. Nxd4 {[%emt 0:00:07]} Nf6 {[%emt 0:00:05]} 6. Nc3 {[%emt 0:00:14]} d6 {[%emt 0:00:08]} 7. Be2 {[%emt 0:00:54]} Nxd4 {[%emt 0:00:09]} 8. Qxd4 {[%emt 0:00:09]} Bg7 {[%emt 0:00:34]} 9. Be3 {[%emt 0:00:43]} O-O {[%emt 0:00:00]} 10. Qd2 {[%emt 0:00:47]} a5 {[%emt 0:00:00]} 11. O-O {[%emt 0:07:24]} a4 {[%emt 0:00:00]} 12. Rab1 {[%emt 0:03:08]} Qa5 {[%emt 0:11:27]} 13. f3 {[%emt 0:03:41]} Be6 {[%emt 0:07:47]} 14. Nd5 {[%emt 0:02:47]} Qxd2 {[%emt 0:02:35]} 15. Nxe7+ {[%emt 0:01:18]} Kh8 {[%emt 0:00:10]} 16. Bxd2 {[%emt 0:00:09]} Rfe8 {[%emt 0:00:15]} 17. Nd5 {[%emt 0:00:49]} Nxd5 {[%emt 0:00:15]} 18. cxd5 {[%emt 0:09:27]} Bxd5 {[%emt 0:00:45]} 19. Bb5 {[%emt 0:05:07]} Bd4+ {[%emt 0:01:54]} 20. Kh1 {[%emt 0:00:20]} Bxa2 {[%emt 0:09:03]} 21. Ra1 {[%emt 0:01:23]} Re5 {[%emt 0:00:50]} 22. Rxa2 {[%emt 0:20:37]} Rxb5 {[%emt 0:00:09]} 23. Bc3 {[%emt 0:00:54]} Bxc3 {[%emt 0:01:40]} 24. bxc3 {[%emt 0:00:02]} Rc5 {[%emt 0:02:49]} 25. Ra3 {[%emt 0:11:13]} b5 {[%emt 0:04:20]} 26. Kg1 {[%emt 0:05:00]} Rac8 {[%emt 0:04:21]} 27. Rb1 {[%emt 0:00:19]} d5 {[%emt 0:02:24]} 28. exd5 {[%emt 0:05:05]} Rxd5 {[%emt 0:03:35]} 29. Rb4 {[%emt 0:03:54]} Kg7 {[%emt 0:02:50]} 30. c4 {[%emt 0:01:55]} bxc4 {[%emt 0:02:10]} 31. Raxa4 {[%emt 0:05:19]} c3 {[%emt 0:01:33]} 32. Rc4 {[%emt 0:00:24]} Rdc5 {[%emt 0:00:11]} 33. Rxc5 {[%emt 0:00:13]} Rxc5 {[%emt 0:00:31]} 34. Ra1 {[%emt 0:00:19]} Kf6 {[%emt 0:00:48]} 35. Kf2 {[%emt 0:00:19]} Ke5 {[%emt 0:01:31]} 36. Ke3 {[%emt 0:00:42]} g5 {[%emt 0:01:29]} 37. Kd3 {[%emt 0:01:24]} h5 {[%emt 0:02:07]} 38. Re1+ {[%emt 0:01:00]} Kf4 {[%emt 0:03:35]} 39. Re4+ {[%emt 0:03:57]} Kf5 {[%emt 0:01:25]} 40. Kc2 {[%emt 0:04:31]} h4 {[%emt 0:07:09]} 41. g4+ {[%emt 0:08:00]} Kf6 {[%emt 0:11:44]} 42. f4 {[%emt 0:01:41]} gxf4 {[%emt 0:02:46]} 43. Rxf4+ {[%emt 0:00:12]} Kg6 {[%emt 0:01:41]} 44. h3 {[%emt 0:04:52]} Ra5 {[%emt 0:03:29]} 45. Rf3 {[%emt 0:11:00]} Ra2+ {[%emt 0:07:35]} 46. Kd1 {[%emt 0:02:50]} Rg2 {[%emt 0:05:08]} 47. Rxc3 {[%emt 0:00:43]} Kg5 {[%emt 0:10:22]} 48. Rf3 {[%emt 0:03:17]} Rg3 {[%emt 0:03:36]} 49. Ke2 {[%emt 0:00:18]} Rxf3 {[%emt 0:02:57]} 50. Kxf3 {[%emt 0:00:03]} f5 {[%emt 0:00:11]} 51. gxf5 {[%emt 0:00:18]} Kxf5 {[%emt 0:00:07]} 52. Ke3 {[%emt 0:00:22]} Ke5 {[%emt 0:00:07]} 1/2-1/2

[Event "FIDE CB Open 2022"]
[Site "Ceske Budejovice"]
[Date "2022.07.03"]
[Round "3.35"]
[White "Zezula, Jakub"]
[Black "Puncochar, Jiri"]
[Result "0-1"]
[ECO "C97"]
[WhiteElo "1831"]
[BlackElo "2020"]
[Annotator "RC"]
[PlyCount "116"]
[EventDate "2022.07.01"]
[EventType "swiss"]
[EventCountry "CZE"]
[SourceTitle "playchess.com"]
[Source "ChessBase"]
[SourceQuality "1"]
[TimeControl "40/5400+30:1800+30"]

1. e4 {[%emt 0:00:05]} e5 {[%emt 0:00:06]} 2. Nf3 {[%emt 0:00:07]} Nc6 {[%emt 0:00:06]} 3. Bb5 {[%emt 0:00:05]} a6 {[%emt 0:00:05]} 4. Ba4 {[%emt 0:00:06]} Nf6 {[%emt 0:00:07]} 5. O-O {[%emt 0:00:10]} Be7 {[%emt 0:01:27]} 6. Re1 {[%emt 0:00:51]} b5 {[%emt 0:00:05]} 7. Bb3 {[%emt 0:00:05]} O-O {[%emt 0:00:08]} 8. h3 {[%emt 0:00:14]} d6 {[%emt 0:00:10]} 9. c3 {[%emt 0:00:06]} Na5 {[%emt 0:00:23]} 10. Bc2 {[%emt 0:00:13]} c5 {[%emt 0:00:06]} 11. d4 {[%emt 0:00:28]} Qc7 {[%emt 0:00:18]} 12. Nbd2 {[%emt 0:02:39]} Re8 {[%emt 0:02:19]} 13. d5 {[%emt 0:09:50]} Bf8 {[%emt 0:01:00]} 14. Nf1 {[%emt 0:00:12]} g6 {[%emt 0:01:10]} 15. Bg5 {[%emt 0:03:26]} Bg7 {[%emt 0:00:16]} 16. Ng3 {[%emt 0:04:12]} Bd7 {[%emt 0:01:22]} 17. b3 {[%emt 0:00:29]} Reb8 {[%emt 0:09:31]} 18. Qd2 {[%emt 0:02:53]} Nb7 {[%emt 0:04:36]} 19. Bh6 {[%emt 0:04:48]} Qd8 {[%emt 0:05:29]} 20. Bg5 {[%emt 0:08:30]} a5 {[%emt 0:04:16]} 21. Nh2 {[%emt 0:04:07]} Qf8 {[%emt 0:05:51]} 22. Nhf1 {[%emt 0:11:56]} Ne8 {[%emt 0:03:17]} 23. a3 {[%emt 0:04:59]} Nc7 {[%emt 0:04:34]} 24. b4 {[%emt 0:01:31]} Ra7 {[%emt 0:08:44]} 25. Reb1 {[%emt 0:02:45]} Rba8 {[%emt 0:00:58]} 26. Qc1 {[%emt 0:00:56]} Qc8 {[%emt 0:09:13]} 27. Bd2 {[%emt 0:03:40]} Ne8 {[%emt 0:01:24]} 28. Ne3 {[%emt 0:02:07]} Bh6 {[%emt 0:02:50]} 29. Qb2 {[%emt 0:18:50]} Bf4 {[%emt 0:04:16]} 30. Bd3 {[%emt 0:06:42]} axb4 {[%emt 0:04:13]} 31. axb4 {[%emt 0:00:30]} c4 {[%emt 0:00:35]} 32. Bc2 {[%emt 0:01:50]} Nf6 {[%emt 0:02:06]} 33. Nef1 {[%emt 0:02:44]} Bxd2 {[%emt 0:08:22]} 34. Nxd2 {[%emt 0:00:02]} h5 {[%emt 0:00:08]} 35. Nf3 {[%emt 0:00:56]} Qb8 {[%emt 0:06:12]} 36. Kh2 {[%emt 0:00:56]} Kg7 {[%emt 0:02:11]} 37. Kg1 {[%emt 0:00:13]} Nd8 {[%emt 0:00:56]} 38. Qc1 {[%emt 0:03:04]} Nh7 {[%emt 0:02:11]} 39. Qb2 {[%emt 0:00:35]} f6 {[%emt 0:00:25]} 40. h4 {[%emt 0:01:54]} Nf7 {[%emt 0:00:36]} 41. Nf1 {[%emt 0:06:20]} Nh6 {[%emt 0:02:22]} 42. Ne3 {[%emt 0:01:37]} Nf8 {[%emt 0:02:12]} 43. Bd1 {[%emt 0:02:38]} Qb6 {[%emt 0:02:25]} 44. g3 {[%emt 0:03:03]} Bg4 {[%emt 0:01:45]} 45. Kg2 {[%emt 0:01:41]} Nd7 {[%emt 0:01:52]} 46. Ne1 {[%emt 0:01:29]} Bxd1 {[%emt 0:01:10]} 47. Rxd1 {[%emt 0:00:22]} Qb7 {[%emt 0:02:09]} 48. N1c2 {[%emt 0:01:44]} Nb6 {[%emt 0:00:28]} 49. Rxa7 {[%emt 0:02:04]} Rxa7 {[%emt 0:00:36]} 50. Ra1 {[%emt 0:00:35]} Na4 {[%emt 0:06:28]} 51. Qa3 {[%emt 0:00:37]} Ra6 {[%emt 0:01:03]} 52. f3 {[%emt 0:01:44]} f5 {[%emt 0:02:52]} 53. Qa2 {[%emt 0:04:34]} fxe4 {[%emt 0:02:06]} 54. fxe4 {[%emt 0:00:02]} Nc5 {[%emt 0:00:25]} 55. Qb1 {[%emt 0:02:30]} Rxa1 {[%emt 0:00:28]} 56. Qxa1 {[%emt 0:00:03]} Nxe4 {[%emt 0:00:27]} 57. Qa5 {[%emt 0:00:37]} Nxc3 {[%emt 0:00:59]} 58. Qd8 {[%emt 0:00:28]} Nf7 {[%emt 0:00:16]} 0-1

[Event "FIDE CB Open 2022"]
[Site "Ceske Budejovice"]
[Date "2022.07.03"]
[Round "3.36"]
[White "Kosut, Tomas"]
[Black "Radovic, Stefan"]
[Result "1-0"]
[ECO "B33"]
[WhiteElo "1820"]
[BlackElo "2018"]
[Annotator "RC"]
[PlyCount "218"]
[EventDate "2022.07.01"]
[EventType "swiss"]
[EventCountry "CZE"]
[SourceTitle "playchess.com"]
[Source "ChessBase"]
[SourceQuality "1"]
[TimeControl "40/5400+30:1800+30"]

1. e4 {[%emt 0:00:05]} c5 {[%emt 0:00:04]} 2. Nf3 {[%emt 0:00:24]} Nc6 {[%emt 0:00:04]} 3. d4 {[%emt 0:00:45]} cxd4 {[%emt 0:00:05]} 4. Nxd4 {[%emt 0:00:13]} Nf6 {[%emt 0:00:06]} 5. Nc3 {[%emt 0:00:13]} e5 {[%emt 0:00:08]} 6. Ndb5 {[%emt 0:01:32]} d6 {[%emt 0:00:08]} 7. Bg5 {[%emt 0:01:16]} a6 {[%emt 0:00:05]} 8. Na3 {[%emt 0:00:05]} b5 {[%emt 0:00:05]} 9. Bxf6 {[%emt 0:02:05]} gxf6 {[%emt 0:00:04]} 10. Nd5 {[%emt 0:01:02]} f5 {[%emt 0:00:04]} 11. exf5 {[%emt 0:02:11]} Bxf5 {[%emt 0:04:43]} 12. c3 {[%emt 0:01:37]} Bg7 {[%emt 0:00:06]} 13. Qf3 {[%emt 0:04:39]} Be6 {[%emt 0:02:35]} 14. Nf6+ {[%emt 0:09:10]} Qxf6 {[%emt 0:03:33]} 15. Qxc6+ {[%emt 0:00:07]} Ke7 {[%emt 0:00:11]} 16. Qb7+ {[%emt 0:06:31]} Bd7 {[%emt 0:00:25]} 17. Nc2 {[%emt 0:01:29]} Rhb8 {[%emt 0:05:52]} 18. Qc7 {[%emt 0:01:29]} Rc8 {[%emt 0:23:37]} 19. Qb7 {[%emt 0:00:48]} Ke8 {[%emt 0:12:22]} 20. Nb4 {[%emt 0:02:26]} Bh6 {[%emt 0:28:15]} 21. Rd1 {[%emt 0:08:22]} Bg4 {[%emt 0:04:22]} 22. Nd5 {[%emt 0:06:01]} Qd8 {[%emt 0:00:26]} 23. Be2 {[%emt 0:04:24]} Bd7 {[%emt 0:01:04]} 24. Nb6 {[%emt 0:08:35]} Bc6 {[%emt 0:03:17]} 25. Nxc8 {[%emt 0:03:35]} Bxb7 {[%emt 0:00:18]} 26. Nxd6+ {[%emt 0:00:11]} Kf8 {[%emt 0:00:28]} 27. Nxb7 {[%emt 0:00:32]} Qe7 {[%emt 0:02:43]} 28. Nd6 {[%emt 0:01:53]} Rd8 {[%emt 0:00:57]} 29. Nf5 {[%emt 0:00:22]} Rxd1+ {[%emt 0:00:32]} 30. Bxd1 {[%emt 0:00:07]} Qg5 {[%emt 0:00:38]} 31. Nxh6 {[%emt 0:00:25]} Qxh6 {[%emt 0:00:05]} 32. O-O {[%emt 0:00:43]} Qd2 {[%emt 0:00:23]} 33. Bb3 {[%emt 0:00:57]} Qxb2 {[%emt 0:01:13]} 34. c4 {[%emt 0:00:26]} b4 {[%emt 0:03:42]} 35. h3 {[%emt 0:00:30]} a5 {[%emt 0:00:27]} 36. c5 {[%emt 0:06:43]} Qc3 {[%emt 0:01:48]} 37. Rd1 {[%emt 0:00:26]} Qxc5 {[%emt 0:00:11]} 38. Rd7 {[%emt 0:00:39]} Qc1+ {[%emt 0:01:59]} 39. Kh2 {[%emt 0:00:06]} Qf4+ {[%emt 0:00:43]} 40. Kg1 {[%emt 0:00:08]} Qc1+ {[%emt 0:01:18]} 41. Kh2 {[%emt 0:30:07]} Qf4+ {[%emt 0:31:19]} 42. Kg1 {[%emt 0:00:45]} e4 {[%emt 0:00:00]} 43. Rd4 {[%emt 0:00:00]} Kg7 {[%emt 0:00:00]} 44. Kf1 {[%emt 0:00:00]} Qc1+ {[%emt 0:00:00]} 45. Ke2 {[%emt 0:00:00]} Qa3 {[%emt 0:00:00]} 46. Rxe4 {[%emt 0:00:00]} a4 {[%emt 0:00:00]} 47. Rg4+ {[%emt 0:00:00]} Kf8 {[%emt 0:00:00]} 48. Bc4 {[%emt 0:00:00]} Qb2+ {[%emt 0:00:00]} 49. Ke3 {[%emt 0:00:00]} Qc3+ {[%emt 0:00:03]} 50. Ke2 {[%emt 0:00:00]} f6 {[%emt 0:01:11]} 51. g3 {[%emt 0:00:00]} Ke7 {[%emt 0:00:26]} 52. Bg8 {[%emt 0:00:00]} Qc2+ {[%emt 0:01:19]} 53. Ke3 {[%emt 0:00:00]} Kd6 {[%emt 0:00:48]} 54. Rd4+ {[%emt 0:00:00]} Kc5 {[%emt 0:00:41]} 55. Rd5+ {[%emt 0:14:30]} Kc6 {[%emt 0:00:14]} 56. Rd4 {[%emt 0:00:27]} Qc1+ {[%emt 0:00:57]} 57. Ke2 {[%emt 0:00:57]} Qb2+ {[%emt 0:00:13]} 58. Ke3 {[%emt 0:00:32]} Qc1+ {[%emt 0:00:47]} 59. Ke2 {[%emt 0:00:10]} Qb2+ {[%emt 0:00:33]} 60. Ke3 {[%emt 0:00:17]} h6 {[%emt 0:00:12]} 61. h4 {[%emt 0:01:36]} Kc5 {[%emt 0:00:36]} 62. Rd5+ {[%emt 0:00:19]} Kc6 {[%emt 0:00:08]} 63. Rd4 {[%emt 0:00:01]} Qc3+ {[%emt 0:00:58]} 64. Rd3 {[%emt 0:00:42]} Qe5+ {[%emt 0:00:15]} 65. Kd2 {[%emt 0:01:18]} Qe8 {[%emt 0:00:09]} 66. Bd5+ {[%emt 0:02:17]} Kc5 {[%emt 0:00:06]} 67. f4 {[%emt 0:04:20]} h5 {[%emt 0:00:44]} 68. f5 {[%emt 0:00:42]} Qe5 {[%emt 0:00:08]} 69. Be6 {[%emt 0:00:34]} Qb2+ {[%emt 0:00:14]} 70. Ke3 {[%emt 0:00:14]} Qg2 {[%emt 0:00:21]} 71. Kf4 {[%emt 0:00:57]} Qf2+ {[%emt 0:00:10]} 72. Ke4 {[%emt 0:00:14]} Qe2+ {[%emt 0:00:14]} 73. Re3 {[%emt 0:00:12]} Qd2 {[%emt 0:00:33]} 74. Rd3 {[%emt 0:00:34]} Qe2+ {[%emt 0:00:17]} 75. Re3 {[%emt 0:00:07]} Qg2+ {[%emt 0:00:46]} 76. Rf3 {[%emt 0:00:56]} Qc2+ {[%emt 0:00:27]} 77. Rd3 {[%emt 0:00:09]} Qc1 {[%emt 0:00:35]} 78. Rd5+ {[%emt 0:00:42]} Kc6 {[%emt 0:00:26]} 79. Rd3 {[%emt 0:00:20]} Qh1+ {[%emt 0:00:42]} 80. Ke3 {[%emt 0:00:36]} Kc5 {[%emt 0:00:14]} 81. Kf2 {[%emt 0:02:06]} Qe4 {[%emt 0:00:29]} 82. Rd7 {[%emt 0:00:48]} b3 {[%emt 0:02:23]} 83. axb3 {[%emt 0:00:25]} axb3 {[%emt 0:00:38]} 84. Rc7+ {[%emt 0:01:32]} Kb6 {[%emt 0:00:34]} 85. Rc4 {[%emt 0:00:40]} Qc2+ {[%emt 0:01:08]} 86. Ke3 {[%emt 0:00:15]} Qg2 {[%emt 0:00:32]} 87. Rb4+ {[%emt 0:01:36]} Ka5 {[%emt 0:00:25]} 88. Rxb3 {[%emt 0:00:13]} Qxg3+ {[%emt 0:00:14]} 89. Kd4 {[%emt 0:00:45]} Qxh4+ {[%emt 0:00:10]} 90. Kc5 {[%emt 0:00:15]} Qf2+ {[%emt 0:00:23]} 91. Kc6 {[%emt 0:00:09]} Qc2+ {[%emt 0:00:38]} 92. Kd6 {[%emt 0:00:39]} Qe2 {[%emt 0:00:56]} 93. Ke7 {[%emt 0:00:43]} Qe5 {[%emt 0:00:25]} 94. Rh3 {[%emt 0:00:54]} Qe2 {[%emt 0:01:12]} 95. Kxf6 {[%emt 0:00:43]} Qg4 {[%emt 0:00:16]} 96. Rb3 {[%emt 0:00:21]} h4 {[%emt 0:00:16]} 97. Ke7 {[%emt 0:01:21]} h3 {[%emt 0:00:25]} 98. f6 {[%emt 0:00:19]} Qf4 {[%emt 0:01:35]} 99. Rxh3 {[%emt 0:00:31]} Qc7+ {[%emt 0:00:10]} 100. Ke8 {[%emt 0:01:31]} Qd6 {[%emt 0:00:31]} 101. Kf7 {[%emt 0:00:28]} Kb6 {[%emt 0:00:29]} 102. Rb3+ {[%emt 0:01:22]} Kc5 {[%emt 0:00:14]} 103. Rc3+ {[%emt 0:00:45]} Kd4 {[%emt 0:00:22]} 104. Rc8 {[%emt 0:00:47]} Ke4 {[%emt 0:01:31]} 105. Re8 {[%emt 0:00:19]} Kf3 {[%emt 0:00:31]} 106. Re7 {[%emt 0:01:21]} Qc5 {[%emt 0:00:30]} 107. Kf8 {[%emt 0:00:45]} Kf4 {[%emt 0:00:21]} 108. f7 {[%emt 0:00:30]} Ke5 {[%emt 0:00:46]} 109. Ke8 {[%emt 0:01:12]} Kd6 {[%emt 0:00:27]} 1-0

[Event "FIDE CB Open 2022"]
[Site "Ceske Budejovice"]
[Date "2022.07.03"]
[Round "3.37"]
[White "Rosol, Alexander"]
[Black "Wojdyla, Alex"]
[Result "1-0"]
[ECO "B80"]
[WhiteElo "2001"]
[BlackElo "1782"]
[Annotator "ChessBase"]
[PlyCount "81"]
[EventDate "2022.07.01"]
[EventType "swiss"]
[EventCountry "CZE"]
[SourceTitle "playchess.com"]
[Source "ChessBase"]
[SourceQuality "1"]
[TimeControl "40/5400+30:1800+30"]

1. e4 {[%emt 0:00:09]} c5 {[%emt 0:00:20]} 2. Nf3 {[%emt 0:00:11]} d6 {[%emt 0:00:06]} 3. d4 {[%emt 0:00:04]} cxd4 {[%emt 0:00:03]} 4. Nxd4 {[%emt 0:00:04]} Nf6 {[%emt 0:00:04]} 5. Nc3 {[%emt 0:00:05]} Nc6 {[%emt 0:00:13]} 6. f3 {[%emt 0:01:03]} a6 {[%emt 0:00:27]} 7. Be3 {[%emt 0:00:49]} e6 {[%emt 0:00:53]} 8. Qd2 {[%emt 0:00:29]} Be7 {[%emt 0:00:36]} 9. g4 {[%emt 0:01:20]} Nd7 {[%emt 0:02:03]} 10. O-O-O {[%emt 0:01:00]} O-O {[%emt 0:00:22]} 11. h4 {[%emt 0:00:34]} Nxd4 {[%emt 0:02:33]} 12. Bxd4 {[%emt 0:00:08]} b5 {[%emt 0:07:13]} 13. g5 {[%emt 0:00:34]} Ne5 {[%emt 0:02:53]} 14. Qe3 {[%emt 0:22:07]} Bd7 {[%emt 0:13:31]} 15. f4 {[%emt 0:05:57]} Nc4 {[%emt 0:00:19]} 16. Bxc4 {[%emt 0:00:13]} bxc4 {[%emt 0:00:04]} 17. f5 {[%emt 0:07:13]} exf5 {[%emt 0:08:34]} 18. exf5 {[%emt 0:06:07]} Bxf5 {[%emt 0:04:43]} 19. Nd5 {[%emt 0:06:55]} Re8 {[%emt 0:09:18]} 20. Qf4 {[%emt 0:04:34]} Be4 {[%emt 0:08:19]} 21. Nf6+ {[%emt 0:06:04]} Bxf6 {[%emt 0:16:07]} 22. gxf6 {[%emt 0:01:24]} Qa5 {[%emt 0:01:47]} 23. Rhg1 {[%emt 0:17:38]} Bg6 {[%emt 0:01:44]} 24. Bc3 {[%emt 0:07:39]} Qxa2 {[%emt 0:13:16]} 25. Rg2 {[%emt 0:05:13]} Qa1+ {[%emt 0:03:45]} 26. Kd2 {[%emt 0:00:02]} Qa4 {[%emt 0:00:07]} 27. Rxg6 {[%emt 0:01:07]} hxg6 {[%emt 0:01:18]} 28. fxg7 {[%emt 0:00:02]} Qb5 {[%emt 0:01:05]} 29. Qh6 {[%emt 0:00:55]} f6 {[%emt 0:01:43]} 30. Qxg6 {[%emt 0:02:10]} Qd5+ {[%emt 0:00:46]} 31. Kc1 {[%emt 0:00:02]} Qf7 {[%emt 0:00:11]} 32. Qf5 {[%emt 0:00:30]} Re2 {[%emt 0:01:34]} 33. h5 {[%emt 0:00:51]} Qxg7 {[%emt 0:00:26]} 34. Qd5+ {[%emt 0:00:45]} Kh7 {[%emt 0:00:29]} 35. Qxa8 {[%emt 0:00:07]} Qg5+ {[%emt 0:00:27]} 36. Kb1 {[%emt 0:00:12]} Qf5 {[%emt 0:00:36]} 37. Rc1 {[%emt 0:00:30]} Qxh5 {[%emt 0:00:32]} 38. Bxf6 {[%emt 0:00:55]} Re8 {[%emt 0:00:27]} 39. Qb7+ {[%emt 0:00:22]} Kg6 {[%emt 0:00:11]} 40. Bc3 {[%emt 0:00:28]} Re3 {[%emt 0:00:45]} 41. Rg1+ {[%emt 0:30:24]} 1-0

[Event "FIDE CB Open 2022"]
[Site "Ceske Budejovice"]
[Date "2022.07.03"]
[Round "3.38"]
[White "Toman, Jan"]
[Black "Vojtek, Pavel"]
[Result "1-0"]
[ECO "E94"]
[WhiteElo "2142"]
[BlackElo "1711"]
[Annotator "ChessBase"]
[PlyCount "89"]
[EventDate "2022.07.01"]
[EventType "swiss"]
[EventCountry "CZE"]
[SourceTitle "playchess.com"]
[Source "ChessBase"]
[SourceQuality "1"]
[TimeControl "40/5400+30:1800+30"]

1. d4 {[%emt 0:00:11]} Nf6 {[%emt 0:00:09]} 2. Nf3 {[%emt 0:00:07]} d6 {[%emt 0:00:03]} 3. c4 {[%emt 0:00:07]} g6 {[%emt 0:00:05]} 4. Nc3 {[%emt 0:00:03]} Bg7 {[%emt 0:00:05]} 5. e4 {[%emt 0:00:06]} O-O {[%emt 0:00:38]} 6. Be2 {[%emt 0:00:23]} Nbd7 {[%emt 0:01:13]} 7. O-O {[%emt 0:00:08]} e5 {[%emt 0:00:49]} 8. d5 {[%emt 0:00:28]} h6 {[%emt 0:04:39]} 9. Qc2 {[%emt 0:05:25]} Kh7 {[%emt 0:02:50]} 10. Ne1 {[%emt 0:05:48]} Ng8 {[%emt 0:10:20]} 11. Be3 {[%emt 0:02:46]} Ne7 {[%emt 0:04:47]} 12. Nd3 {[%emt 0:02:08]} f5 {[%emt 0:01:20]} 13. f3 {[%emt 0:00:40]} f4 {[%emt 0:03:12]} 14. Bf2 {[%emt 0:00:05]} Nf6 {[%emt 0:03:16]} 15. c5 {[%emt 0:02:01]} Bd7 {[%emt 0:06:12]} 16. Qb3 {[%emt 0:09:20]} b6 {[%emt 0:14:59]} 17. cxd6 {[%emt 0:00:48]} cxd6 {[%emt 0:00:06]} 18. Rac1 {[%emt 0:01:31]} Qe8 {[%emt 0:07:18]} 19. Qa3 {[%emt 0:07:53]} Nc8 {[%emt 0:02:55]} 20. Nb4 {[%emt 0:03:09]} Rf7 {[%emt 0:04:49]} 21. Na6 {[%emt 0:02:51]} Qd8 {[%emt 0:04:14]} 22. Nb5 {[%emt 0:02:38]} Ne8 {[%emt 0:01:41]} 23. Nbc7 {[%emt 0:01:35]} Nxc7 {[%emt 0:00:43]} 24. Rxc7 {[%emt 0:00:50]} Be8 {[%emt 0:06:23]} 25. Rxf7 {[%emt 0:02:42]} Bxf7 {[%emt 0:00:02]} 26. Rc1 {[%emt 0:00:21]} Be8 {[%emt 0:04:58]} 27. Nc7 {[%emt 0:03:43]} Rb8 {[%emt 0:00:44]} 28. Ba6 {[%emt 0:01:25]} Bd7 {[%emt 0:02:12]} 29. Bxc8 {[%emt 0:00:43]} Bxc8 {[%emt 0:01:00]} 30. Qxa7 {[%emt 0:03:40]} Rb7 {[%emt 0:01:22]} 31. Ne6 {[%emt 0:00:05]} Rxa7 {[%emt 0:01:33]} 32. Nxd8 {[%emt 0:00:05]} Rxa2 {[%emt 0:00:12]} 33. Bxb6 {[%emt 0:01:16]} Rxb2 {[%emt 0:02:20]} 34. Bc7 {[%emt 0:00:08]} Bf8 {[%emt 0:03:25]} 35. Nf7 {[%emt 0:00:38]} Kg7 {[%emt 0:03:41]} 36. Nxe5 {[%emt 0:01:50]} Ba6 {[%emt 0:03:02]} 37. Nd7 {[%emt 0:00:17]} Be7 {[%emt 0:01:07]} 38. e5 {[%emt 0:00:29]} Kf7 {[%emt 0:00:34]} 39. exd6 {[%emt 0:01:12]} Bh4 {[%emt 0:00:22]} 40. Ne5+ {[%emt 0:00:17]} Kg8 {[%emt 0:00:38]} 41. d7 {[%emt 0:31:55]} Bf2+ {[%emt 0:00:54]} 42. Kh1 {[%emt 0:00:00]} Bh4 {[%emt 0:00:21]} 43. d8=Q+ {[%emt 0:00:00]} Bxd8 {[%emt 0:00:09]} 44. Bxd8 {[%emt 0:00:00]} Bc8 {[%emt 0:00:17]} 45. Nxg6 {[%emt 0:00:00]} 1-0

[Event "FIDE CB Open 2022"]
[Site "Ceske Budejovice"]
[Date "2022.07.03"]
[Round "3.39"]
[White "Petirova, Iva"]
[Black "Havelka, Josef"]
[Result "0-1"]
[ECO "B97"]
[WhiteElo "1722"]
[BlackElo "2396"]
[Annotator "RC"]
[PlyCount "86"]
[EventDate "2022.07.01"]
[EventType "swiss"]
[EventCountry "CZE"]
[SourceTitle "playchess.com"]
[Source "ChessBase"]
[SourceQuality "1"]
[TimeControl "40/5400+30:1800+30"]

1. e4 {[%emt 0:00:03]} c5 {[%emt 0:00:12]} 2. Nf3 {[%emt 0:00:24]} d6 {[%emt 0:01:37]} 3. d4 {[%emt 0:00:18]} cxd4 {[%emt 0:00:07]} 4. Nxd4 {[%emt 0:00:09]} Nf6 {[%emt 0:00:21]} 5. Nc3 {[%emt 0:00:59]} a6 {[%emt 0:02:19]} 6. Bg5 {[%emt 0:02:13]} e6 {[%emt 0:04:33]} 7. f4 {[%emt 0:08:01]} Nbd7 {[%emt 0:07:56]} 8. Bd3 {[%emt 0:09:20]} Be7 {[%emt 0:02:09]} 9. Qf3 {[%emt 0:05:27]} Qb6 {[%emt 0:08:45]} 10. Nb3 {[%emt 0:03:24]} Qc7 {[%emt 0:06:39]} 11. O-O-O {[%emt 0:19:00]} b5 {[%emt 0:09:31]} 12. e5 {[%emt 0:10:23]} Bb7 {[%emt 0:01:22]} 13. Be4 {[%emt 0:02:37]} Nxe4 {[%emt 0:07:03]} 14. Nxe4 {[%emt 0:01:24]} Bxe4 {[%emt 0:09:05]} 15. Qxe4 {[%emt 0:00:11]} d5 {[%emt 0:00:21]} 16. Qe2 {[%emt 0:06:39]} Bxg5 {[%emt 0:00:09]} 17. fxg5 {[%emt 0:00:04]} Qxe5 {[%emt 0:01:17]} 18. Qxe5 {[%emt 0:01:10]} Nxe5 {[%emt 0:00:05]} 19. Rhe1 {[%emt 0:00:48]} f6 {[%emt 0:01:11]} 20. Rd2 {[%emt 0:02:43]} Ke7 {[%emt 0:02:45]} 21. Nc5 {[%emt 0:05:28]} Rhc8 {[%emt 0:05:04]} 22. gxf6+ {[%emt 0:01:40]} gxf6 {[%emt 0:00:18]} 23. Nd3 {[%emt 0:00:58]} Nc4 {[%emt 0:07:46]} 24. Rde2 {[%emt 0:00:39]} e5 {[%emt 0:02:16]} 25. Nf4 {[%emt 0:02:04]} d4 {[%emt 0:04:13]} 26. Nd5+ {[%emt 0:03:32]} Ke6 {[%emt 0:00:31]} 27. Nf4+ {[%emt 0:00:57]} Kd6 {[%emt 0:00:24]} 28. Nh5 {[%emt 0:01:16]} f5 {[%emt 0:01:52]} 29. Ng3 {[%emt 0:05:20]} Rf8 {[%emt 0:01:43]} 30. Rf1 {[%emt 0:03:20]} f4 {[%emt 0:01:43]} 31. Ne4+ {[%emt 0:01:06]} Kd5 {[%emt 0:00:37]} 32. Rf3 {[%emt 0:01:25]} Ne3 {[%emt 0:01:13]} 33. Nd2 {[%emt 0:01:05]} Rg8 {[%emt 0:06:02]} 34. Rh3 {[%emt 0:02:06]} Ra7 {[%emt 0:02:36]} 35. g3 {[%emt 0:00:32]} Rc7 {[%emt 0:01:04]} 36. Nf3 {[%emt 0:00:25]} fxg3 {[%emt 0:01:40]} 37. hxg3 {[%emt 0:00:15]} Rf7 {[%emt 0:00:32]} 38. Ne1 {[%emt 0:01:03]} b4 {[%emt 0:00:52]} 39. Kd2 {[%emt 0:00:32]} Rxg3 {[%emt 0:01:09]} 40. Rxg3 {[%emt 0:00:20]} Nf1+ {[%emt 0:00:04]} 41. Kd1 {[%emt 0:30:58]} Nxg3 {[%emt 0:30:06]} 42. Rg2 {[%emt 0:00:24]} Nf5 {[%emt 0:01:14]} 43. Kd2 {[%emt 0:00:00]} Ne3 {[%emt 0:00:00]} 0-1